[Event "European Women-ch 2023"]
[Site "Petrovac"]
[Date "2023.03.20"]
[Round "3.11"]
[White "Zhukova, Natalia"]
[Black "Gunina, Valentina"]
[Result "1/2-1/2"]
[ECO "D10"]
[WhiteElo "2322"]
[BlackElo "2478"]
[Annotator "TA"]
[PlyCount "54"]
[EventDate "2023.03.15"]
[EventType "swiss"]
[EventCountry "MNE"]
[SourceTitle "playchess.com"]
[Source "ChessBase"]
[SourceQuality "1"]
[TimeControl "40/5400+30:1800+30"]

{[%evp 10,54,33,10,14,-1400,-8,-1115,495,25,33,34,19,34,28,7,32,13,38,13,7,7,33,19,23,11,12,11,16,0,12,12,10,5,3,8,19,20,18,25,12,0,0,0,15,0,0]} 1. d4 {[%emt 0:00:07]} d5 {[%emt 0:00:08]} 2. c4 {[%emt 0:00:15]} c6 {[%emt 0:00:06]} 3. Nc3 {[%emt 0:00:21]} Nf6 {[%emt 0:00:07]} 4. e3 {[%emt 0:00:33]} Bf5 {[%emt 0:00:18]} 5. cxd5 {[%emt 0:00:42]} cxd5 {[%emt 0:00:06]} 6. Qb3 {[%emt 0:00:17]} Nc6 {[%emt 0:00:09] [#] D10: Slav Defence: 3 cxd5 (without early Nf3) and 3 Nc3.} 7. Qb4 $2 {[%emt 0:00:32][%mdl 8192]} b6 $2 ({Black should play} 7... Nxb4 $19 8. Bb5+ Bd7 9. Bxd7+ Qxd7) 8. Qxb6 $2 {[%emt 0:00:31][%mdl 8192]} Be6 $4 {[%emt 0:00:05][%mdl 8192]} (8... Qxb6 $19 {and all is fine.} 9. Nf3 Ne4) 9. Qb7 $2 {Repels Nb4} (9. Qxc6+ $18 Bd7 10. Qa6) 9... Bd7 $1 $11 {[%emt 0:01:01] ...Rb8 is the strong threat.} 10. Qb3 {[%emt 0:00:48]} Rb8 {[%emt 0:00:05]} 11. Qd1 {[%emt 0:00:12]} e5 {[%emt 0:00:14]} 12. dxe5 {[%emt 0:00:44]} Nxe5 {[%emt 0:00:06]} 13. Nge2 {[%emt 0:00:17]} Bc5 {[%emt 0:00:50]} 14. Nf4 {[%emt 0:00:26]} Bc6 {[%emt 0:01:15]} 15. Be2 {[%emt 0:00:21]} O-O {[%emt 0:00:29]} 16. O-O {[%emt 0:00:17] [#]} Re8 $146 {[%emt 0:00:07]} ({Predecessor:} 16... Rb6 17. b3 d4 18. exd4 Bxd4 19. Bb2 Ne4 20. Nxe4 Bxb2 21. Qxd8 Rxd8 22. Rad1 Rbb8 23. Nc5 a5 24. Na6 Rbc8 {1-0 Krasenkow,M (2671)-Tikkanen,H (2515) Rilton Cup 47th 2017 (5)}) 17. a4 {[%emt 0:00:46]} d4 {[%emt 0:00:38]} 18. exd4 {[%emt 0:00:33]} Bxd4 {[%emt 0:00:10]} 19. Nb5 {[%emt 0:00:20][%cal Bc3b5,Bb5d6,Bd6f5][%mdl 32]} Bb6 {[%emt 0:02:18]} 20. Be3 {[%emt 0:00:32]} Bxe3 {[%emt 0:00:08]} 21. fxe3 {[%emt 0:00:05]} Qe7 {[%emt 0:00:06]} 22. Qd4 {[%emt 0:00:48]} a6 {[%emt 0:03:58]} (22... Ba8 {simplifies} 23. Rac1 Nc6 24. Qc5 Qxc5 25. Rxc5 Rxe3 26. Rfc1 Nd7) 23. Nd6 {[%emt 0:00:31]} Red8 {[%emt 0:02:39]} 24. Nf5 {[%emt 0:00:21]} Qe8 {[%emt 0:05:14]} 25. Nd6 {[%emt 0:01:19] The position is equal.} Qe7 {[%emt 0:00:07]} 26. Nf5 {[%emt 0:00:56]} Qe8 {[%emt 0:00:40]} 27. Nd6 {[%emt 0:00:34]} Qe7 {[%emt 0:00:05] A brilliant game!   Weighted Error Value: White=0.67/Black=0.48} 1/2-1/2

[Event "European Women-ch 2023"]
[Site "Petrovac"]
[Date "2023.03.20"]
[Round "3.11"]
[White "Buchholz, Maja Patricia"]
[Black "Ivekovic, Tihana"]
[Result "0-1"]
[ECO "A13"]
[WhiteElo "1883"]
[BlackElo "2132"]
[Annotator "TA"]
[PlyCount "76"]
[EventDate "2023.03.15"]
[EventType "swiss"]
[EventCountry "MNE"]
[SourceTitle "playchess.com"]
[Source "ChessBase"]
[SourceQuality "1"]
[TimeControl "40/5400+30:1800+30"]

{[%evp 9,76,12,20,-16,-10,-13,-13,-18,-6,-17,0,-8,0,0,0,0,0,0,40,0,10,0,0,0,0,-9,0,-66,35,28,86,51,25,0,118,38,68,0,0,-187,-202,-278,-167,-168,-178,-168,-174,-182,-184,-166,-68,-65,-65,-65,-64,-72,-61,-61,-54,-61,-56,-64,-69,-65,-62,-55,-60,-919,-905]} 1. c4 {[%emt 0:00:02]} Nf6 {[%emt 0:00:04]} 2. g3 {[%emt 0:00:06]} e6 {[%emt 0:00:04]} 3. Bg2 {[%emt 0:00:06]} d5 {[%emt 0:00:05]} 4. Nf3 {[%emt 0:00:06]} d4 {[%emt 0:01:18]} 5. d3 {[%emt 0:00:21]} c5 {[%emt 0:00:12]} 6. e4 {[%emt 0:02:05] A13: English Opening: 1...e6.} Nc6 {[%emt 0:01:51]} 7. e5 {[%emt 0:07:38] Repels Bd6} Nd7 {[%emt 0:03:32]} 8. Qe2 {[%emt 0:01:53] The position is equal.} a6 {[%emt 0:01:16]} 9. Bf4 {[%emt 0:04:54]} Be7 {[%emt 0:00:25]} 10. h4 {[%emt 0:01:46] [#]} h6 $146 {[%emt 0:04:11]} ({Predecessor:} 10... Qb6 11. O-O Nf8 12. h5 h6 13. b3 Nh7 14. Nbd2 Bd7 15. Ne4 Qc7 16. a3 a5 {1-0 Iturrizaga Bonelli,E (2607)-Leszko,B (2321) Titled Tuesday intern op 23rd Feb blitz 2021 (10)}) 11. Nbd2 {[%emt 0:03:28]} Qc7 {[%emt 0:05:31]} 12. a3 {[%emt 0:07:00]} Rb8 {[%emt 0:01:36]} 13. Ne4 {[%emt 0:07:00]} Qa5+ {[%emt 0:17:15]} 14. Bd2 {[%emt 0:04:34]} Qc7 {[%emt 0:00:05]} 15. Bf4 {[%emt 0:00:42]} b5 {[%emt 0:09:03]} 16. b3 {[%emt 0:05:41]} bxc4 {[%emt 0:00:48]} 17. bxc4 {[%emt 0:00:08]} Qa5+ {[%emt 0:06:14]} 18. Qd2 {[%emt 0:03:03]} ({Better is} 18. Bd2 $11 Qc7 19. Bf4) 18... Qa4 {[%emt 0:01:21]} (18... Bb7 $15) 19. O-O $14 {[%emt 0:02:39]} Na5 {[%emt 0:00:44]} (19... Rb6 $11) 20. Ra2 {[%emt 0:03:45]} Bb7 {[%emt 0:05:22]} 21. Qe2 {[%emt 0:10:25]} O-O {[%emt 0:01:18] [#]} (21... Bxe4 $11 {remains equal.} 22. Qxe4 O-O) 22. Nfd2 {[%emt 0:04:09]} (22. Nh2 $1 $16) 22... Nc6 {[%emt 0:01:01][%cal Ba5c6,Bc6b4,Bb4d3][%mdl 32]} 23. Qh5 {[%emt 0:03:24]} (23. Rb2 $14) 23... Nb4 $11 {[%emt 0:10:41][%mdl 64] Pin, Double Attack} 24. Rb2 {[%emt 0:08:06]} (24. Bxh6 $11 Nxa2 25. Bxg7 Kxg7 26. Ng5 Bxg5 27. Qxg5+ Kh7 28. Qh5+ Kg8 29. Qg5+ Kh7 30. Qh5+ Kg8 31. Qg5+ Kh7) 24... Nxd3 $19 {[%emt 0:03:01]} (24... Qxa3 25. Rb3 Qa2 26. Bxh6 gxh6 27. Qxh6 $11) 25. Rxb7 {[%emt 0:00:11]} Nxf4 {[%emt 0:00:04]} 26. gxf4 {[%emt 0:00:28]} Rxb7 {[%emt 0:00:07]} 27. Nf6+ {[%emt 0:01:20]} Bxf6 {[%emt 0:01:10]} (27... gxf6 28. Qxh6 Rfb8 29. Be4 $18) (27... Nxf6 28. exf6 Qxa3 29. Bxb7 (29. fxg7 Kxg7 30. Bxb7 Qb4 $11) 29... Bxf6 30. Ne4 $14) 28. Bxb7 {[%emt 0:00:27]} Be7 {[%emt 0:01:05][%cal Bf6e7,Be7d6,Bd6e5][%mdl 32]} 29. Be4 {[%emt 0:02:17]} Qa5 {[%emt 0:08:47]} (29... Qxa3 $19 {Hoping for ...Qc3.} 30. Nf3 Qa2) 30. Nf3 $1 $15 {[%emt 0:00:52]} f5 {[%emt 0:03:33]} (30... Qxa3 31. f5 Rd8 32. fxe6 fxe6 33. Rb1 $14 (33. Qg6 $2 Nf8 $17)) 31. exf6 {[%emt 0:01:14]} Nxf6 {[%emt 0:01:11]} 32. Qg6 {[%emt 0:01:47]} Qc7 {[%emt 0:03:41] Threatens to win with ...Nxe4.} ({Much less strong is} 32... Qxa3 33. Rb1 Qa4 34. Rb7 $14) 33. Ne5 $1 {[%emt 0:06:16]} Bd6 $36 {[%emt 0:01:36][%mdl 2048] Black is pushing.} ({Of course not} 33... Nxe4 34. Qxe6+ Kh7 35. Qg6+ Kg8 36. Qe6+ Kh7 37. Qg6+ Kg8 38. Qe6+ $11) 34. Rb1 $1 {[%emt 0:01:07] Strongly threatening Rb7.} Nxe4 $1 {[%emt 0:02:04][%mdl 64] [#] Discovered Attack} 35. Qxe6+ {[%emt 0:00:13]} Kh7 {[%emt 0:01:14]} 36. Qg6+ {[%emt 0:00:16]} Kh8 {[%emt 0:00:29]} 37. Qxe4 {[%emt 0:00:13]} Bxe5 {[%emt 0:00:07]} 38. Rb7 $2 {[%emt 0:00:33][%mdl 8192]} (38. fxe5 $15 Qf7 39. f3) 38... Rxf4 {[%emt 0:01:03] Weighted Error Value: White=0.44/Black=0.23 (precise)} 0-1

[Event "European Women-ch 2023"]
[Site "Petrovac"]
[Date "2023.03.20"]
[Round "3.12"]
[White "Mammadzada, Gunay"]
[Black "Unuk, Laura"]
[Result "1-0"]
[ECO "C74"]
[WhiteElo "2472"]
[BlackElo "2297"]
[Annotator "TA"]
[PlyCount "93"]
[EventDate "2023.03.15"]
[EventType "swiss"]
[EventCountry "MNE"]
[SourceTitle "playchess.com"]
[Source "ChessBase"]
[SourceQuality "1"]
[TimeControl "40/5400+30:1800+30"]

{[%evp 13,93,9,19,-29,-29,-29,-36,-26,-25,-45,-47,-51,-43,-34,4,0,0,-52,-35,-86,-22,-32,6,10,8,8,4,12,10,10,17,10,16,0,0,0,75,-37,-25,-35,0,0,0,-15,0,0,74,75,80,84,116,131,212,152,131,143,120,122,374,356,956,901,1539,1226,12833,12833,12832,12832,12832,12833,12833,12834,12835,12835,12835,10708,12839,12839,12840,12839,12840,12840]} 1. e4 {[%emt 0:00:44]} e5 {[%emt 0:00:09]} 2. Nf3 {[%emt 0:00:06]} Nc6 {[%emt 0:00:05]} 3. Bb5 {[%emt 0:00:05]} a6 {[%emt 0:00:15]} 4. Ba4 {[%emt 0:00:09]} d6 {[%emt 0:00:37]} 5. c3 {[%emt 0:01:12]} f5 {[%emt 0:01:23]} 6. exf5 {[%emt 0:05:37]} Bxf5 {[%emt 0:00:18]} 7. d4 $1 {[%emt 0:11:42][%mdl 4] outshines the older 7.0-0.} e4 $1 {[%emt 0:06:36]} 8. Bg5 {[%emt 0:04:26] C74: Ruy Lopez: Deferred Steinitz: 5 c3 f5.} (8. Ng5 $142 Be7 9. c4) 8... Be7 $1 $11 {[%emt 0:22:03]} 9. Nh4 {[%emt 0:19:04]} Be6 {[%emt 0:16:15]} 10. Bxe7 {[%emt 0:04:15] Black is slightly better.} Qxe7 {[%emt 0:03:09]} 11. d5 {[%emt 0:02:59][%mdl 64] g3 would be deadly. Pin, Double Attack} Qxh4 {[%emt 0:02:21]} 12. dxc6 {[%emt 0:01:24] [#]} ({Of course not} 12. Bxc6+ bxc6 13. dxe6 Nf6 $17) 12... b5 $146 {[%emt 0:08:47]} ({Predecessor:} 12... b6 13. Bb3 Bxb3 14. Qxb3 Nf6 15. O-O d5 16. c4 O-O 17. cxd5 Kh8 18. d6 cxd6 {½-½ Volokitin,A (2660)-Miton,K (2646) RUS-chT 13th 2006 (4)}) 13. Bb3 {[%emt 0:00:25]} Qe7 {[%emt 0:06:52]} 14. O-O {[%emt 0:16:02]} Nf6 {[%emt 0:00:52]} 15. f3 {[%emt 0:02:16]} (15. Na3 $11) 15... Bxb3 {[%emt 0:11:04]} (15... exf3 $5 {[%cal Re6b3]} 16. Qxf3 O-O $15) 16. Qxb3 {[%emt 0:01:32]} (16. axb3 $15 O-O 17. Nd2) 16... d5 {[%emt 0:05:23]} ({Black should play} 16... exf3 $17 {Threatens to win with ...Qe3+.} 17. gxf3 d5) 17. Nd2 $1 {[%emt 0:02:06][%cal Bb1d2,Bd2f1,Bf1g3][%mdl 32]} e3 {[%emt 0:03:38]} (17... Qc5+ {simplifies} 18. Kh1 Qxc6 19. fxe4 dxe4 20. a4 O-O-O) 18. Rfe1 {[%emt 0:01:28]} O-O-O $132 {[%emt 0:05:21][%mdl 2048] Black puts up resistance} 19. Nf1 $1 {[%emt 0:01:41]} e2 {[%emt 0:00:10]} 20. Ng3 {[%emt 0:00:34]} Qc5+ {[%emt 0:00:20]} 21. Kh1 {[%emt 0:00:05]} Qxc6 {[%emt 0:00:14]} 22. Nxe2 {[%emt 0:03:38] Black should prevent Nd4.} Rhe8 $1 {[%emt 0:00:29]} 23. a4 {[%emt 0:02:57]} Qc4 {[%emt 0:01:38]} 24. Qc2 {[%emt 0:00:50]} Kb7 {[%emt 0:01:20]} (24... b4 $11) 25. Qd2 {[%emt 0:11:56]} (25. axb5 $16 axb5 26. b3) 25... bxa4 $15 {[%emt 0:01:15]} 26. h3 {[%emt 0:00:19]} h6 {[%emt 0:01:29]} 27. Qd1 {[%emt 0:00:47]} Qb3 {[%emt 0:00:44]} 28. Qd2 {[%emt 0:01:34]} Qc4 {[%emt 0:00:18]} 29. Nd4 {[%emt 0:01:00]} Rxe1+ {[%emt 0:00:53]} (29... Nd7 $11 {keeps the balance.}) 30. Qxe1 $16 {[%emt 0:00:02]} Re8 {[%emt 0:00:26]} 31. Qd1 {[%emt 0:00:03]} a3 {[%emt 0:00:51]} 32. Rxa3 {[%emt 0:00:18]} Nh5 {[%emt 0:00:17]} (32... Re5 $16 {might work better.} 33. Ra1 Nd7) 33. Ra4 {[%emt 0:02:42]} Ng3+ {[%emt 0:00:51]} 34. Kg1 $1 {[%emt 0:01:51][%cal Bh1g1,Bg1h2,Bh2g3][%mdl 32]} Qc5 {[%emt 0:00:28] [#]} 35. Qb3+ $1 {[%emt 0:00:06]} ({Don't play} 35. Kh2 $6 Qd6 $11) 35... Kc8 $2 {[%emt 0:00:27][%mdl 8192] A mistake that costs the game.} (35... Ka7 $16) 36. Rxa6 $18 {[%emt 0:01:01]} Ne2+ $2 {[%emt 0:00:38]} (36... Qc4 37. Qa3 Kd7) 37. Kh2 {[%emt 0:00:32] Intending Qa4 and mate. White is clearly winning.} Nxd4 {[%emt 0:00:32]} 38. cxd4 {[%emt 0:00:27]} Qc4 {[%emt 0:00:28]} 39. Qxc4 {[%emt 0:01:29]} dxc4 {[%emt 0:00:04][%mdl 4096] Endgame [#] KR-KR} 40. Ra8+ $1 {[%emt 0:00:00]} Kd7 {[%emt 0:00:00]} 41. Rxe8 {[%emt 0:01:10]} Kxe8 {[%emt 0:00:08] KP-KP} 42. Kg3 {[%emt 0:00:10]} Ke7 {[%emt 0:04:42]} 43. Kf4 {[%emt 0:00:05]} Ke6 {[%emt 0:01:33]} 44. Ke4 {[%emt 0:00:05]} c6 {[%emt 0:00:16]} 45. f4 {[%emt 0:01:05][%cal Bf3f4,Bf4f5][%mdl 32]} Kf6 {[%emt 0:03:08]} 46. f5 {[%emt 0:02:17]} Kg5 {[%emt 0:01:08]} 47. Ke5 {[%emt 0:00:16] Weighted Error Value: White=0.14 (very precise) /Black=0.28 (precise)} 1-0

[Event "European Women-ch 2023"]
[Site "Petrovac"]
[Date "2023.03.20"]
[Round "3.12"]
[White "Zherebtsova, Alexandra"]
[Black "Zawadzka, Jolanta"]
[Result "0-1"]
[ECO "A39"]
[WhiteElo "2155"]
[BlackElo "2391"]
[Annotator "TA"]
[PlyCount "140"]
[EventDate "2023.03.15"]
[EventType "swiss"]
[EventCountry "MNE"]
[SourceTitle "playchess.com"]
[Source "ChessBase"]
[SourceQuality "1"]
[TimeControl "40/5400+30:1800+30"]

{[%evp 19,140,11,34,0,31,0,7,0,61,64,120,106,161,141,156,161,162,166,158,158,187,166,163,127,219,222,211,81,87,52,60,48,156,149,200,208,244,162,157,170,159,52,66,39,68,8,6,7,42,43,40,56,75,66,78,-82,-82,-88,-88,-78,-44,-217,-206,-192,-205,-196,-177,-230,-173,-185,-117,-116,-122,-118,-116,-144,-147,-157,-158,-163,-79,-143,-150,-184,-192,-191,-192,-456,-452,-941,-139,-139,-128,-131,-127,-95,0,-8,-8,-8,-8,-91,-124,-592,-592,-29966,-29967,-29965,-29967,-29966,-29967,-29966,-29965,-29983,-29984,-29985,-29986,-29986,-29977,-29983,-29984,-29984,-29985]} 1. c4 {[%emt 0:01:35] Kertesz,Alfred} c5 {[%emt 0:00:05]} 2. Nf3 {[%emt 0:01:53]} Nc6 {[%emt 0:00:17]} 3. Nc3 {[%emt 0:01:00]} Nf6 {[%emt 0:06:44]} 4. g3 {[%emt 0:03:57]} g6 {[%emt 0:04:24]} 5. Bg2 {[%emt 0:01:08]} Bg7 {[%emt 0:00:06]} 6. O-O {[%emt 0:02:57]} O-O {[%emt 0:00:19]} 7. d4 {[%emt 0:07:46]} cxd4 {[%emt 0:11:39]} 8. Nxd4 {[%emt 0:01:32]} Nxd4 {[%emt 0:00:34]} 9. Qxd4 {[%emt 0:00:15]} d6 {[%emt 0:00:17]} 10. Qh4 {[%emt 0:13:33]} Qb6 {[%emt 0:10:06]} 11. Rb1 {[%emt 0:08:27] A39: Symmetrical English vs ...g6: 4 Bg2 Bg7 5 Nf3 Nf6 6 0-0 0-0 7 d4.} Be6 {[%emt 0:07:49]} (11... Bf5 $5 {[%cal Rf5b1]}) 12. Be3 {[%emt 0:23:29] [#]} Qa6 $146 {[%emt 0:03:34]} ({Predecessor:} 12... Qb4 13. Rfc1 Qxc4 14. Qxc4 Bxc4 15. Bxb7 Rab8 16. Bf3 a6 17. b3 Be6 18. b4 Bc4 {½-½ Kertesz,A-Corodan,M ROM-ch Semifinal 1982 (2)}) 13. Nb5 {[%emt 0:08:44] The position is equal.} Rfc8 {[%emt 0:01:57] Repels Nc7} (13... Qxa2 $11 14. Nc7 Rab8) 14. b3 $1 $14 {[%emt 0:00:49]} Bd7 {[%emt 0:15:00]} (14... h5 $14) 15. a4 $1 $16 {[%emt 0:00:29]} Bc6 {[%emt 0:00:29]} (15... d5 $16 {might work better.}) 16. Bh3 $1 $18 {[%emt 0:01:03]} b6 {[%emt 0:10:31]} 17. Bxc8 {[%emt 0:01:28]} Qxc8 {[%emt 0:00:05]} 18. Bh6 {[%emt 0:06:09]} Bh8 {[%emt 0:01:00]} 19. f3 {[%emt 0:00:38] Dodges Ng4} Bb7 {[%emt 0:01:32]} 20. Rbd1 {[%emt 0:02:48]} a6 {[%emt 0:01:17]} 21. Nd4 {[%emt 0:00:46]} e5 {[%emt 0:07:17]} (21... Qc5 $16 22. Kg2 Re8) 22. Nc2 {[%emt 0:01:31]} d5 {[%emt 0:00:13]} 23. Ne3 {[%emt 0:02:11]} (23. Rd2 $18) 23... d4 $16 {[%emt 0:00:19]} 24. Bg5 {[%emt 0:02:27]} Qe6 {[%emt 0:00:46]} 25. Nc2 {[%emt 0:02:13]} Nd7 {[%emt 0:01:41]} (25... h5 $1 $14) 26. e3 $1 {[%emt 0:03:12][%cal Re3d4]} f6 {[%emt 0:04:25]} (26... Qf5 $16 {was worth a try.} 27. e4 Qe6) 27. Bh6 $18 {[%emt 0:00:01]} g5 {[%emt 0:01:49]} 28. Qg4 {[%emt 0:00:48]} Qxg4 {[%emt 0:03:42]} 29. fxg4 {[%emt 0:00:02]} Be4 {[%emt 0:00:07]} 30. Nb4 {[%emt 0:00:22]} ({Better is} 30. Ne1 $16) 30... a5 $14 {[%emt 0:00:30]} 31. Nd5 {[%emt 0:00:27]} Bc2 {[%emt 0:03:00][%csl LRb3,LRd1]} 32. Rc1 {[%emt 0:01:30]} (32. Rd2 $14 d3 33. h4) 32... d3 $11 {[%emt 0:00:12]} 33. h4 {[%emt 0:00:45]} Nc5 {[%emt 0:01:55][%cal Bd7c5,Bc5b3,Bb3c1][%mdl 32]} (33... gxh4 $5 34. Rxc2 (34. gxh4 Kf7 $11) 34... dxc2 $11) 34. hxg5 {[%emt 0:00:32]} (34. Nxf6+ $2 Bxf6 35. Rxf6 d2 $19) (34. Nxb6 Rb8 35. Nd5 Nxb3 $15) 34... Nxb3 {[%emt 0:00:21]} 35. gxf6 {[%emt 0:00:47][%cal Rf6f7]} (35. Nxf6+ Bxf6 36. gxf6 Kf7 $17) (35. Nxb6 Ra6 36. gxf6 Kf7 $15) 35... Kf7 {[%emt 0:00:19] [#]} 36. e4 $1 {[%emt 0:00:27]} Rg8 $1 {[%emt 0:01:23][%cal Ba8g8,Bg8g4,Bg4g6][%mdl 32] [#]} 37. Ne3 $2 {[%emt 0:00:42]} Nxc1 $17 {[%emt 0:00:12]} (37... Bxf6 $2 38. Nxc2 (38. Nd5 Rg6 $17) 38... Nxc1 39. Bxc1 $18) 38. Nxc2 {[%emt 0:00:09]} Ne2+ {[%emt 0:00:26]} (38... dxc2 $6 39. Rxc1 Bxf6 40. Rxc2 $11) 39. Kf2 {[%emt 0:00:08]} Rxg4 {[%emt 0:01:18] Black is more active.} (39... Nc3 $5 {[%cal Rd3c2]} 40. Ne1 Nxe4+ 41. Ke3 d2 $17) 40. Ne3 $2 {[%emt 0:00:00]} (40. Ne1 $1 $15) 40... Rg6 {[%emt 0:00:00]} (40... Rxg3 41. Nf5 Rg6 42. Ke3 Bxf6 43. Kxd3 $17) 41. Nf5 {[%emt 0:06:19] [#]} Nxg3 $1 {[%emt 0:03:50][%mdl 576] Deflection} 42. Nxg3 {[%emt 0:01:18]} Rxh6 $19 {[%emt 0:00:06][%mdl 4096] Endgame KRB-KRN} 43. Rd1 {[%emt 0:02:35]} (43. Kg2 {is a better defense.}) 43... Bxf6 {[%emt 0:09:51]} (43... Rxf6+ 44. Nf5 $17) 44. Kg2 {[%emt 0:02:36][%cal Og3f5]} Bg5 {[%emt 0:03:04]} ({Black should play} 44... Be7 $19 {White must now prevent ...Rc6.} 45. Rxd3 Bc5) 45. Nf5 {[%emt 0:02:18]} Rc6 {[%emt 0:00:32]} 46. Rxd3 {[%emt 0:00:49][%cal Oc4c5]} Kf6 {[%emt 0:01:23]} (46... Rxc4 $2 47. Nd6+ Ke6 48. Nxc4 $18) 47. Kf3 {[%emt 0:07:30]} h5 $1 {[%emt 0:04:00]} 48. Rb3 {[%emt 0:04:12]} Bd2 {[%emt 0:01:26]} (48... Rxc4 $2 49. Rxb6+ $18) 49. Rb2 {[%emt 0:03:06]} Bc3 {[%emt 0:02:01]} (49... Bf4 $19 {is more deadly.} 50. Rc2 Rc7) 50. Rc2 {[%emt 0:01:00]} ({White should try} 50. Rh2) 50... Bd4 $17 {[%emt 0:02:06]} ({Resist} 50... Rxc4 51. Ne3 Rxa4 52. Rxc3 $11) 51. Nxd4 {[%emt 0:02:17]} exd4 {[%emt 0:00:04] KR-KR} 52. Kf4 {[%emt 0:00:13]} Ke7 {[%emt 0:01:17]} 53. Rb2 $2 {[%emt 0:01:59]} (53. Rh2 {only move.}) 53... Rf6+ $19 {[%emt 0:01:45]} ({And not} 53... Rxc4 54. Rxb6 Rxa4 55. Rb7+ Kd6 56. Rh7 $17) 54. Ke5 {[%emt 0:00:45]} (54. Kg3 $142 d3 55. e5 h4+ {[%mdl 64] Decoy} 56. Kxh4 Rf4+ 57. Kg3) 54... d3 $2 {[%emt 0:00:12]} (54... Rd6 $19 {and Black stays clearly on top. Hoping for ...d3.} 55. Rd2 d3) 55. c5 $17 {[%emt 0:01:36]} Re6+ {[%emt 0:00:06]} ({Much worse is} 55... bxc5 $6 56. Rb7+ Kd8 57. Kxf6 $11) 56. Kd4 {[%emt 0:00:27]} bxc5+ {[%emt 0:02:29]} 57. Kxd3 {[%emt 0:00:02]} Kd6 {[%emt 0:02:18]} (57... h4 $17 {Threatens to win with ...Rd6+.} 58. Rb7+ Kf6) 58. Rb6+ {[%emt 0:00:44]} Ke5 {[%emt 0:00:22]} 59. Rb5 {[%emt 0:00:18][%csl LRa5,LRc5]} Rc6 {[%emt 0:01:26]} 60. Ke3 {[%emt 0:00:32]} (60. Kc4 $11) 60... h4 {[%emt 0:00:15] Strongly threatening ...h3.} 61. Rxa5 $2 {[%emt 0:00:30][%mdl 8192]} (61. Rb8 $17) 61... h3 $19 {[%emt 0:01:08] ( -> ...h2)} 62. Rb5 {[%emt 0:00:47]} h2 {[%emt 0:00:34] Black mates.} 63. Rb1 {[%emt 0:00:14]} Rh6 {[%emt 0:00:21]} 64. Rh1 {[%emt 0:00:33]} Rh3+ {[%emt 0:00:05]} 65. Kf2 {[%emt 0:00:55]} c4 {[%emt 0:02:04]} 66. Kg2 {[%emt 0:00:23]} Rh7 {[%emt 0:00:37]} 67. a5 {[%emt 0:00:28]} c3 {[%emt 0:00:10]} 68. a6 {[%emt 0:00:42]} c2 {[%emt 0:00:42]} 69. Kf3 {[%emt 0:00:38] [#]} c1=Q $1 {[%emt 0:00:19][%mdl 576] Decoy, Promotion} 70. Rxc1 {[%emt 0:00:06]} h1=Q+ {[%emt 0:00:06] What a bad dream for White.   Weighted Error Value: White=0.40/Black=0.31} 0-1